Cogmind - Beta 10.2 @@@ ROGUE MODE // 2021.08.11 @ 00:09:32 Player: Smakemupagus Result: Destroyed by LN-VIH(l) with Ripper Performance ------------- Evolutions (1) 500 Regions Visited (6) 1200 Robots Destroyed (47) 235 Value Destroyed (1131) 1131 Prototype IDs (1) 20 Alien Tech Used (0) 0 Bonus (0) 0 TOTAL SCORE: 3086 Bonus ------- None Cogmind --------- Core Integrity 0/400 Matter 216/300 Energy 100/100 System Corruption 0% Temperature Cool (0) Movement Core (600) Ox11 Location -6/Proximity Caves Parts ------- > --- POWER (1) -------- (None) > --- PROPULSION (4) --- (None) > --- UTILITY (2) ------ High-capacity Storage Unit Hacking Drone Bay (0/1) > --- WEAPON (2) ------- Makeshift Spear > --- INVENTORY (12) --- Ion Engine Heat Sink Large Storage Unit Large Storage Unit Advanced Armor Integrity Analyzer Advanced Armor Integrity Analyzer Electrolaser Light Assault Rifle Light Assault Rifle Peak State ------------ > --- POWER ------------ (None) > --- PROPULSION ------- Aluminum Leg Aluminum Leg Aluminum Leg Flexi-carbon Leg > --- UTILITY ---------- High-capacity Storage Unit Hacking Drone Bay > --- WEAPON ----------- Gauss Rifle Makeshift Spear > --- INVENTORY -------- Ion Engine Heat Sink Large Storage Unit Large Storage Unit Advanced Armor Integrity Analyzer Advanced Armor Integrity Analyzer Electrolaser Light Assault Rifle Light Assault Rifle [Rating: 28] Favorites ----------- Power Ion Engine Engine Ion Engine Power Core Light Nuclear Core Propulsion Aluminum Leg Leg Aluminum Leg Utility Large Storage Unit Device Terrain Scanner Storage Large Storage Unit Protection Light Armor Plating Weapon Electrolaser Energy Gun Electrolaser Ballistic Gun Light Assault Rifle Ballistic Cannon Light Cannon Special Weapon Mining Laser Impact Weapon Hammer Piercing Weapon Makeshift Spear Build | -11 -10 -10 -9 -9 -7 -6 ------- Run | Scr Mat Min Mat Min Zio Pro Slots Evolved 2 | . . . 2 . . . Power . | . . . . . . . Propulsion 2 | . . . 2 . . . Utility . | . . . . . . . Weapon . | . . . . . . . Parts Attached 69 | 6 9 10 24 4 9 7 Power 12 | 1 2 3 4 1 . 1 Engine 10 | 1 2 2 4 1 . . Core 2 | . . 1 . . . 1 Reactor . | . . . . . . . Propulsion 18 | 2 2 2 10 1 . 1 Treads . | . . . . . . . Leg 18 | 2 2 2 10 1 . 1 Wheel . | . . . . . . . Hover . | . . . . . . . Flight . | . . . . . . . Utility 12 | 1 2 1 3 1 3 1 Device 4 | . 1 . 1 . 1 1 Storage 5 | 1 1 1 1 . 1 . Processor . | . . . . . . . Hackware . | . . . . . . . Protection 3 | . . . 1 1 1 . Artifact . | . . . . . . . Weapon 27 | 2 3 4 7 1 6 4 Energy Gun 10 | . 2 1 2 1 3 1 Energy Cannon . | . . . . . . . Ballistic Gun 8 | 2 . 1 1 . 2 2 Ballistic Cannon 2 | . . . 2 . . . Launcher . | . . . . . . . Special Weapon 1 | . 1 . . . . . Impact Weapon 4 | . . 2 2 . . . Slashing Weapon . | . . . . . . . Piercing Weapon 2 | . . . . . 1 1 Special Melee Weapon . | . . . . . . . Unidentified Prototypes 1 | . . . . . 1 . Parts Lost 20 | . . 4 9 1 . 6 Power 4 | . . 1 2 . . 1 Propulsion 10 | . . 1 4 1 . 4 Utility 2 | . . 1 1 . . . Weapon 4 | . . 1 2 . . 1 Highest Loss Streak 6 | . . 3 5 1 . 6 Average Slot Usage (%) 97 | . 94 98 94 98 100 98 Engine 10 | . 14 12 7 11 11 1 Core 1 | . . . 3 . . 8 Leg 37 | . 28 27 40 42 44 43 Device 4 | . 8 9 4 . . . Storage 13 | . 14 18 15 16 11 11 Protection 4 | . . . 2 5 11 10 Energy Gun 13 | . 18 21 4 11 11 10 Ballistic Gun 4 | . 8 . 11 . . 11 Ballistic Cannon 1 | . . . . 11 3 . Impact Weapon 1 | . . 5 4 . . . Piercing Weapon 2 | . . . . . 6 . Naked Turns . | . . . . . . . Heaviest Build 49 | 12 27 41 43 43 46 49 Greatest Support 60 | 20 20 20 60 40 40 50 Greatest Overweight (x) 2 | 1 1 2 1 1 1 1 Average Overweight (x) . | . . 1 . . . . Largest Inventory Capacity 16 | 6 12 16 16 16 12 12 Average Capacity 11 | 5 9 11 12 12 11 12 Most Carried 10 | 4 10 9 10 9 10 10 Average Carried 7 | 1 4 7 8 7 9 9 Final Capacity 16 | 6 10 16 16 10 12 12 Final Carried 10 | 3 9 8 8 8 10 9 Class Distribution -------------------- 68% | Scavenger-Mutant 31% | Mutant Dominant Class ---------------- Mutant | -10/Materials Scavenger-Mutant | -10/Mines Scavenger-Mutant | -9/Materials Scavenger-Mutant | -9/Mines Scavenger-Mutant | -7/Zion Scavenger-Mutant | -6/Proximity Caves Resources | -11 -10 -10 -9 -9 -7 -6 ----------- Run | Scr Mat Min Mat Min Zio Pro Matter Collected 1014 | 284 186 75 334 55 10 70 Remotely . | . . . . . . . Salvage Created 1790 | 124 387 314 718 70 . 177 Parts 98 | 8 25 13 36 5 . 11 Haulers Intercepted 1 | . 1 . . . . . Recyclers Shooed 2 | . 1 . 1 . . . Parts Field Recycled . | . . . . . . . Retrieved Matter . | . . . . . . . Parts Self-Destructed 3 | . . . . . . 3 Prevented 3 | . . . . . . 3 Kills | -11 -10 -10 -9 -9 -7 -6 ------- Run | Scr Mat Min Mat Min Zio Pro Combat Hostiles Destroyed 33 | . 4 10 14 2 . 3 Melee 11 | . . 3 7 . . 1 Guns 16 | . 4 5 5 1 . 1 Cannons 2 | . . . 1 1 . . Classes Destroyed 12 | 2 5 1 1 1 . 2 Worker 3 | . 1 1 1 . . . Builder 1 | . 1 . . . . . Tunneler 2 | 2 . . . . . . Hauler 1 | . 1 . . . . . Recycler 5 | 1 1 . 3 . . . Watcher 2 | . 1 . 1 . . . Swarmer 9 | . . 6 3 . . . Grunt 19 | . 4 4 10 1 . . Brawler 1 | . . . . 1 . . Sentry 1 | . . . 1 . . . Hunter 1 | . . . . . . 1 Thug 1 | . . . . . . 1 Butcher 1 | . . . . . . 1 Best Kill Streak 6 | 2 3 3 6 2 . 1 Combat Bots Only 3 | . 2 3 3 2 . 1 Max Kills in Single Turn 1 | 1 1 1 1 1 . 1 Gunslinging . | . . . . . . . Exploded . | . . . . . . . Melee 1 | . . 1 1 . . 1 Uniques/NPCs Destroyed . | . . . . . . . Combat | -11 -10 -10 -9 -9 -7 -6 -------- Run | Scr Mat Min Mat Min Zio Pro Damage Taken 3365 | . 355 564 1279 89 . 1078 Core 530 | . 40 90 166 10 . 224 Absorbed by Shields . | . . . . . . . Core Remaining (%) 74 | 100 . 48 . . . . Volleys Fired 115 | 6 41 18 30 5 . 15 Largest 2 | 2 2 2 2 2 . 2 Hottest 105 | 40 105 105 86 98 . 91 Shots Fired 212 | 12 82 29 51 10 . 28 Gun 206 | 12 82 29 50 5 . 28 Cannon 6 | . . . 1 5 . . Launcher . | . . . . . . . Special . | . . . . . . . Kinetic 116 | 12 48 . 38 5 . 13 Thermal 59 | . 17 17 13 5 . 7 Explosive . | . . . . . . . Electromagnetic 37 | . 17 12 . . . 8 Robot Hit Streak 12 | 3 8 11 8 7 . 12 Robot Miss Streak 5 | 2 5 4 3 1 . 2 Penetration Max . | . . . . . . . Secondary Targets 1 | . . . 1 . . . Max Gunslinging Chain 1 | . . . 1 . . . Shots Hit Robots 203 | 6 48 39 75 8 . 27 Core Hits 70 | 3 15 15 25 3 . 9 Critical Hits 2 | . 1 . . 1 . . Critical Kills . | . . . . . . . Critical Parts Destroyed 2 | . 1 . . 1 . . Melee Attacks 91 | . . 27 58 . . 6 Impact 85 | . . 27 58 . . . Slashing . | . . . . . . . Piercing 6 | . . . . . . 6 Sneak Attacks . | . . . . . . . Combat Hostiles . | . . . . . . . Follow-up Attacks . | . . . . . . . Damage Inflicted 3014 | 92 566 590 1210 132 . 424 Guns 1816 | 92 566 278 497 50 . 333 Cannons 98 | . . . 16 82 . . Explosions . | . . . . . . . Melee 1100 | . . 312 697 . . 91 Ramming . | . . . . . . . Kinetic 997 | 92 328 . 360 82 . 135 Thermal 564 | . 123 150 153 50 . 88 Explosive . | . . . . . . . Electromagnetic 353 | . 115 128 . . . 110 Impact 1009 | . . 312 697 . . . Slashing . | . . . . . . . Piercing 91 | . . . . . . 91 Highest Corruption 2 | . . . . 2 2 . Average Corruption 2 | . . . . 2 2 . Corruption Purged . | . . . . . . . Effects 3 | . . . . 1 2 . Heat Flow Errors 2 | . . . . 1 1 . Energy Discharges 1 | . . . . . 1 . Overload Shots . | . . . . . . . Overflow Damage 26 | . . 16 10 . . . Projectiles . | . . . . . . . Explosions . | . . . . . . . Melee 26 | . . 16 10 . . . Knockbacks 6 | . . 4 2 . . . Impact 4 | . . 2 2 . . . Kinetic . | . . . . . . . Secondary 2 | . . 2 . . . . Self-Inflicted Damage . | . . . . . . . Shots . | . . . . . . . Rammed . | . . . . . . . Targets Rammed . | . . . . . . . Kicked . | . . . . . . . Crushed . | . . . . . . . Highest Temperature 318 | . 180 153 162 234 119 318 Average Temperature 69 | . 53 66 42 93 60 121 Received Heat Transfer 789 | . 192 174 360 18 . 45 Effects 2 | . . . . . . 2 Interference 2 | . . . . . . 2 Siege Activations . | . . . . . . . Robots Corrupted 1 | . . . . . . 1 Combat Hostiles 1 | . . . . . . 1 Parts Fried 6 | . 1 1 4 . . . Impact Corruptions 6 | . . 3 3 . . . Robots Melted . | . . . . . . . Combat Hostiles . | . . . . . . . Parts Melted 1 | . . . 1 . . . Heat Transferred 1369 | . 296 444 333 111 . 185 Parts Sabotaged . | . . . . . . . Parts Stolen . | . . . . . . . Parts Stripped . | . . . . . . . Power Chain Reactions 2 | . 2 . . . . . Missiles Intercepted . | . . . . . . . Alert | -11 -10 -10 -9 -9 -7 -6 ------- Run | Scr Mat Min Mat Min Zio Pro Peak Influence 368 | 15 198 256 368 122 . . Initial 82 | . 9 76 37 82 . . Average 141 | 5 88 174 173 115 . . Maximum Alert Level 1 | . . 1 1 . . . Low Security (%) 67 | 100 100 41 57 100 . . Level 1 32 | . . 58 42 . . . Level 2 . | . . . . . . . Level 3 . | . . . . . . . Level 4 . | . . . . . . . Level 5 . | . . . . . . . High Security . | . . . . . . . Max Security . | . . . . . . . Squads Dispatched 4 | . 1 . 3 . . . Investigation 1 | . 1 . . . . . Extermination . | . . . . . . . Reinforcement 3 | . . . 3 . . . Assault . | . . . . . . . Garrison . | . . . . . . . Intercept . | . . . . . . . Construction Impeded . | . . . . . . . Haulers Reinforced . | . . . . . . . Stealth | -11 -10 -10 -9 -9 -7 -6 --------- Run | Scr Mat Min Mat Min Zio Pro Distress Signals 6 | . 1 . 5 . . . Communications Jammed . | . . . . . . . Distress Signals . | . . . . . . . Times Spotted 49 | . 9 10 22 2 . 6 Peak Tracking Total 5 | . 3 3 5 2 . 4 Tactical Retreats 3 | . . 1 2 . . . Traps | -11 -10 -10 -9 -9 -7 -6 ------- Run | Scr Mat Min Mat Min Zio Pro Traps Triggered 1 | . 1 . . . . . Indirectly . | . . . . . . . Trap Hack Attempts . | . . . . . . . Triggered . | . . . . . . . Disarmed . | . . . . . . . Reprogrammed . | . . . . . . . Reused . | . . . . . . . Traps Extracted . | . . . . . . . Installed . | . . . . . . . Triggered 1 | . . . . . . 1 Machines | -11 -10 -10 -9 -9 -7 -6 ---------- Run | Scr Mat Min Mat Min Zio Pro Machines Disabled 1 | . 1 . . . . . Max in Single Turn 1 | . 1 . . . . . Machines Sabotaged . | . . . . . . . Garrisons Compromised . | . . . . . . . Overloaded Fab Kills . | . . . . . . . Fab Network Shutdowns . | . . . . . . . Hacking | -11 -10 -10 -9 -9 -7 -6 --------- Run | Scr Mat Min Mat Min Zio Pro Machines Accessed 2 | . 1 . 1 . . . Terminals 2 | . 1 . 1 . . . Fabricators . | . . . . . . . Repair Stations . | . . . . . . . Recycling Units . | . . . . . . . Scanalyzers . | . . . . . . . Garrison Access . | . . . . . . . Total Hacks 3 | . 1 . 2 . . . Successful 1 | . . . 1 . . . Failed 2 | . 1 . 1 . . . Catastrophic . | . . . . . . . Database Lockouts . | . . . . . . . Manual . | . . . . . . . Terminals 3 | . 1 . 2 . . . Fabricators . | . . . . . . . Repair Stations . | . . . . . . . Recycling Units . | . . . . . . . Scanalyzers . | . . . . . . . Garrison Access . | . . . . . . . Terminal Hacks 1 | . . . 1 . . . Locate Traps 1 | . . . 1 . . . Fabricator Hacks . | . . . . . . . Repair Station Hacks . | . . . . . . . Recycling Unit Hacks . | . . . . . . . Scanalyzer . | . . . . . . . Garrison Access Hacks . | . . . . . . . Unauthorized Hacks . | . . . . . . . Terminals . | . . . . . . . Fabricators . | . . . . . . . Repair Stations . | . . . . . . . Recycling Units . | . . . . . . . Scanalyzers . | . . . . . . . Garrison Access . | . . . . . . . Data Cores Recovered . | . . . . . . . Used . | . . . . . . . Hacking Detections 1 | . 1 . . . . . Full Trace Events . | . . . . . . . Feedback Events . | . . . . . . . Feedback Blocked . | . . . . . . . Robot Schematics Acquired . | . . . . . . . Robots Built . | . . . . . . . Matter . | . . . . . . . Time . | . . . . . . . Total Robot Build Rating . | . . . . . . . Part Schematics Acquired . | . . . . . . . Parts Built . | . . . . . . . Matter . | . . . . . . . Time . | . . . . . . . Total Part Build Rating . | . . . . . . . Parts Repaired . | . . . . . . . Time . | . . . . . . . Parts Recycled . | . . . . . . . Recycled Matter . | . . . . . . . Retrieved Matter . | . . . . . . . Retrieved Components . | . . . . . . . Parts Scanalyzed . | . . . . . . . Part Schematics Acquired . | . . . . . . . Parts Damaged . | . . . . . . . Bothacking | -11 -10 -10 -9 -9 -7 -6 ------------ Run | Scr Mat Min Mat Min Zio Pro Used RIF Installer . | . . . . . . . Robots Hacked . | . . . . . . . Non-combat . | . . . . . . . Combat . | . . . . . . . Robot Hacks Applied . | . . . . . . . Relay Couplers Released . | . . . . . . . Robots Rewired . | . . . . . . . Allies Hacked . | . . . . . . . Hacks Repelled . | . . . . . . . Allies | -11 -10 -10 -9 -9 -7 -6 -------- Run | Scr Mat Min Mat Min Zio Pro Total Allies . | . . . . . . . Largest Group . | . . . . . . . Highest-Rated Group . | . . . . . . . Highest-Rated Ally . | . . . . . . . Total Orders . | . . . . . . . Ally Attacks . | . . . . . . . Total Damage . | . . . . . . . Kills . | . . . . . . . Allies Corrupted . | . . . . . . . Allies Melted . | . . . . . . . Intel | -11 -10 -10 -9 -9 -7 -6 ------- Run | Scr Mat Min Mat Min Zio Pro Robot Analysis Total . | . . . . . . . Derelict Logs Recovered 1 | . . . . . 1 . Drone Launches 1 | . . . . . . 1 Drone Recoveries . | . . . . . . . Exploration | -11 -10 -10 -9 -9 -7 -6 ------------- Run | Scr Mat Min Mat Min Zio Pro Turns Passed 2474 | 78 378 448 542 77 781 170 Spaces Moved 1313 | 42 159 207 219 43 559 84 Core 6 | 6 . . . . . . Treads . | . . . . . . . Legs 1307 | 36 159 207 219 43 559 84 Wheels . | . . . . . . . Hover . | . . . . . . . Flight . | . . . . . . . Fastest Speed 50 | 50 120 150 120 120 120 120 Average Speed 135 | 112 146 150 120 125 135 121 Slowest Speed 180 | 150 150 180 150 150 150 150 Overloaded Moves . | . . . . . . . Propulsion Burnouts . | . . . . . . . Robots Hopped . | . . . . . . . Cave-ins Triggered . | . . . . . . . Exploration Rate (%) 32 | 4 33 58 25 18 69 20 Regions Visited 6 Branch Regions 4 Pre-discovered Areas 2 | . . . . . 2 . Known Exits Taken . | . . . . . . . Unknown Exits Taken 6 | 1 1 1 1 1 1 . Scrap Searched 3 | . . . . . 3 . Spaces Dug . | . . . . . . . Terrain Destroyed 1 | . 1 . . . . . Melee . | . . . . . . . Projectile . | . . . . . . . AOE 1 | . 1 . . . . . Terrain Rammed . | . . . . . . . Walls Destroyed . | . . . . . . . Machines Disabled . | . . . . . . . Actions | -11 -10 -10 -9 -9 -7 -6 --------- Run | Scr Mat Min Mat Min Zio Pro Total 1673 | 62 228 272 359 56 578 118 Wait 5 | . . 2 3 . . . Move 1307 | 41 158 206 218 42 558 84 Hop . | . . . . . . . Pick Up 58 | 9 13 6 18 3 6 3 Fast Attach 2 | . . . 1 . 1 . Attach 29 | 6 3 4 13 2 . 1 Detach . | . . . . . . . Swap 38 | . 6 6 10 2 8 6 Drop 28 | . 7 3 8 2 5 3 Fire 115 | 6 41 18 30 5 . 15 Melee 91 | . . 27 58 . . 6 Ram . | . . . . . . . Kick . | . . . . . . . Crush . | . . . . . . . Escape Stasis . | . . . . . . . Rewire . | . . . . . . . Trap . | . . . . . . . Miscellaneous . | . . . . . . . Route ------- -11/Scrapyard -10/Materials -10/Mines (discovered 2 exits: *Mat x2) -9/Materials -9/Mines -7/Zion -6/Proximity Caves History --------- Turn | Location | Event 5 | -11/Scrapyard | Discovered new exit (range 16) 79 | -11/Scrapyard | Entered Materials 305 | -10/Materials | Build established: Mutant 448 | -10/Materials | Discovered new exit (range 6) 457 | -10/Materials | Entered Mines 521 | -10/Mines | Discovered new exit (range 7) 738 | -10/Mines | Build established: Scavenger-Mutant 809 | -10/Mines | Lost 3 parts (1n1u1w) 855 | -10/Mines | Core integrity fell below 50% 895 | -10/Mines | Discovered new exit (range 5) 905 | -10/Mines | Entered Materials 905 | -9/Materials | Evolved 2 slots: Propulsion x2 1176 | -9/Materials | Discovered new exit (range 12) 1353 | -9/Materials | Lost 3 parts (1p1u1w) 1429 | -9/Materials | Lost 5 parts (1p3n1w) 1447 | -9/Materials | Entered Mines 1465 | -9/Mines | Met a Derelict bent on vengeance 1520 | -9/Mines | A Derelict revealed a hidden shortcut to a safe place 1524 | -9/Mines | Entered Zion 1580 | -7/Zion | System corruption cleaned by Quarantine Array 1623 | -7/Zion | Given the Hacking Drone Bay 1623 | -7/Zion | Found Prototype Device 1827 | -7/Zion | Learned Factory terminal intel 1969 | -7/Zion | Learned location of Data Miner (-6) 2080 | -7/Zion | Identified Hacking Drone Bay 2108 | -7/Zion | Discovered new exit (range 12) 2165 | -7/Zion | Visited the Megawrench Repair Shop 2165 | -7/Zion | Megawrench repaired 9 parts 2305 | -7/Zion | Entered Proximity Caves 2323 | -6/Proximity Caves | Core integrity fell below 50% 2455 | -6/Proximity Caves | Attacked by a faux Warlord 2468 | -6/Proximity Caves | Core integrity fell below 20% 2475 | -6/Proximity Caves | Destroyed by LN-VIH(l) with Ripper Last Messages --------------- Dropped Aluminum Leg. Acquired Gauss Rifle. Acquired 70 matter. 5C-IWN(g) destroyed. Slug penetrates 8V-G97(l). Slug penetrates Wall. GT-817(M): "I've never seen anything like that down here. It must be an Unaware spy!" GT-817(M): "You are tresspassing on Warlord territory, MY territory! Guards, destroy it!" Overheating: System interference. Electrolaser temporarily disabled. Lgt. Fission Core destroyed. Lgt. Armor Plating severed. Hacking Drone released from Hacking Drone Bay. Aluminum Leg destroyed. 8V-G97(l) destroyed. Gauss Rifle destroyed. Aluminum Leg destroyed. Flexi-carbon Leg destroyed. Map ----- +----------------------------------------------------+ | ?????????????????????????????????????????????????? | | #????????????????????????????????????????????????? | | #????????????????????????????????????????????????? | | ?????????????????????????????????????????????????? | | ?????????????????????????????????????????????????? | | ?????????????????????????????????????????????????? | | ???????????????##????????????????????????????????? | | ??????????????? ????????????????????????????????? | | ??????????????? ????????????????????????????????? | | ??????????????? ????????????????????????????????? | | ???######### #? ?????? ???????????????????????? | | #### ## ?????? ####???????????????????? | | ## ?????? #???????????????????? | | #????# ?????? ##?????????????????? | | ## #????# ??????# ??????????????????? | | # ## #????# #??????# ???????????????????? | | # #?????# #??????# #????????????????????? | | #?????# #??????# #????????????????????? | | #?????# #?###?## #????????????????????? | | ## ####### ### ### #????????????????????? | | ?## M [! #?????????????????????? | | ??## =%### ##??###?????? ????????? | | ???########## = ## ### ????????? | | ????????????## ???????? | | ?????????????##### =! #??????????? | | ????????????????## =l@ #???????????? | | ???????????????## l #????????????? | | ???????????????# n #????????????? | | ??????????????# ###### ?????????? | | ??????????????# ######???????? ????????? | | ??????????????## ##????????????????????????? | | ???????????????##### ##?????????????????????????? | | ???????????????????####??????????????????????????? | | ?????????????????????????????????????????????????? | | ?????????????????????????????????????????????????? | | ?????????????????????????????????????????????????? | | ?????????????????????????????????????????????????? | | ?????????????????????????????????????????????????? | | ?????????????????????????????????????????????????? | | ?????????????????????????????????????????????????? | | ?????????????????????????????????????????????????? | | ?????????????????????????????????????????????????? | | ?????????????????????????????????????????????????? | | ?????????????????????????????????????????????????? | | ?????????????????????????????????????????????????? | | ?????????????????????????????????????????????????? | | ?????????????????????????????????????????????????? | | ?????????????????????????????????????????????????? | | ?????????????????????????????????????????????????? | | ?????????????????????????????????????????????????? | +----------------------------------------------------+ Best States ------------- Heat Dissipation 28 Energy Generation 18 Energy Capacity 250 Matter Stores 300 Matter Capacity 300 Sight Range 16 Terrain Scan Range 14 Terrain Scan Density 10 ECM Strength 1 Armor Coverage 150 Evasion (%) 40 Item Schematics ----------------- None Robot Schematics ------------------ None Fabricated ------------ Nothing Alien Tech Used ----------------- None Achievements -------------- Power Corrupts Robot Respite Tourist Challenges ------------ None Game ------ Seed FissionLatentLog Manual? 0 Play Time 00:48:06 Cumulative 12.6 hours Start 2021.08.10 @ 23:22:52 End 2021.08.11 @ 00:09:32 Sessions 1 Manual Loads 0 Difficulty Rogue Special Mode None Game No. 14 Rogue 14 Adventurer 0 Explorer 0 Win Type - Total 0 Types 0/0/0/0/0/0/0/0/0 Lore% 9 Gallery% 21 Achievement% 8 Wizard Run 0 Options --------- ASCII 0 Keyboard 0 Movement Mouse Keybinds 0 Fullscreen 1 Font 18/SmallcapsGlow Map View 76x50 Tactical HUD 0 Map Filters NONE Filters NONE Steam 1 RUN: 6eb3cabf-7659-4c16-a656-bf386d3dd645